[Event "Dutch Open 2022"]
[Site "Dieren"]
[Date "2022.08.04"]
[Round "9.1"]
[White "De Winter, Arthur"]
[Black "Balaji Sekar"]
[Result "0-1"]
[ECO "B99"]
[WhiteElo "2150"]
[BlackElo "1189"]
[Annotator "TA"]
[PlyCount "54"]
[EventDate "2022.07.14"]
[EventType "swiss"]
[EventCountry "NED"]
[SourceTitle "playchess.com"]
[Source "ChessBase"]
[SourceQuality "1"]
[TimeControl "40/5400+30:1800+30"]

{[%evp 18,54,34,19,40,-44,-47,-37,-42,-44,-51,-50,0,0,9,8,35,34,50,28,63,0,81,-43,145,79,154,0,0,-99,-105,-356,-347,-368,-328,-364,-320,-292,-291]} 1. e4 {[%emt 0:00:03]} c5 {[%emt 0:00:07]} 2. Nf3 {[%emt 0:00:04]} d6 {[%emt 0:00:05]} 3. d4 {[%emt 0:00:03]} cxd4 {[%emt 0:00:05]} 4. Nxd4 {[%emt 0:00:04]} Nf6 {[%emt 0:00:05]} 5. Nc3 {[%emt 0:00:03]} a6 {[%emt 0:00:03]} 6. Bg5 {[%emt 0:00:04]} e6 {[%emt 0:01:30]} 7. f4 {[%emt 0:00:04]} Be7 {[%emt 0:00:11]} 8. Qf3 {[%emt 0:00:08]} Qc7 {[%emt 0:00:10]} 9. O-O-O {[%emt 0:00:16]} Nbd7 {[%emt 0:00:10]} 10. f5 {[%emt 0:00:36]} e5 {[%emt 0:07:32] B99: Sicilian Najdorf: 6 Bg5 e6 7 f4 Be7 8 Qf3 Qc7 9 0-0-0 Nbd7.} 11. Nde2 {[%emt 0:00:06]} (11. Nb3 $14) 11... b5 $1 $15 {[%emt 0:11:15]} 12. Bxf6 {[%emt 0:00:04]} Nxf6 {[%emt 0:00:32] Black is slightly better.} 13. Nd5 {[%emt 0:00:02]} Nxd5 {[%emt 0:01:22]} 14. exd5 {[%emt 0:00:03]} Bd7 {[%emt 0:04:51]} (14... O-O $15) 15. Ng3 $1 $11 {[%emt 0:02:02]} Rc8 {[%emt 0:11:50][%csl Gc8][%cal Rc7c2] [#]} 16. Bd3 {[%emt 0:00:07]} a5 {[%emt 0:10:26]} 17. Nh5 {[%emt 0:26:36] [#]} Bf6 $146 {[%emt 0:00:28]} ({Predecessor:} 17... g6 18. Ng7+ Kf8 19. fxg6 hxg6 20. Ne6+ Bxe6 21. dxe6 f6 22. Bxg6 Qc4 23. Kb1 Rd8 24. Rd5 a4 25. Bd3 Qc8 26. Qf5 b4 27. g4 Rg8 28. Rf1 Qc6 29. Qh7 {1-0 (29) Li,H (2193)-O'Gorman,T (2153) Dublin 2019}) 18. g4 {[%emt 0:02:39]} a4 {[%emt 0:11:04][%cal Oa4a3]} ({Don't do} 18... Bg5+ 19. Kb1 $14) 19. h4 {[%emt 0:13:09]} (19. a3 $14) 19... Kf8 {[%emt 0:02:20]} (19... a3 $11 20. g5 (20. Nxf6+ gxf6 21. bxa3 Qa5 $17) 20... axb2+ 21. Kxb2 Qc3+ 22. Kb1 Qb4+ 23. Ka1 Qd4+ 24. Kb1 Qb4+ 25. Ka1 Qd4+ 26. Kb1 Qb4+) 20. Kb1 {[%emt 0:13:06]} ({White should play} 20. g5 $16 Bd8 21. f6) 20... e4 $2 {[%emt 0:06:21]} (20... a3 $1 $15 {stays ahead.} 21. bxa3 (21. Nxf6 gxf6 22. bxa3 Qc5 $17) 21... Qc5) 21. Bxe4 $16 {[%emt 0:06:39]} Be5 {[%emt 0:00:12] [#]} 22. Rde1 $2 {[%emt 0:19:19]} ({White should try} 22. f6 $1 $16 {[%cal Rf6g7]} g6 23. Nf4) 22... Qc4 $11 {[%emt 0:03:46]} 23. a3 {[%emt 0:03:32] Prevents Qb4.} (23. Nf4 $1 $11 {keeps the balance.}) 23... b4 $40 {[%emt 0:01:01][%mdl 128] Strongly threatening ...Qd4. White is in trouble.} 24. axb4 $2 {[%emt 0:00:43][%mdl 8192] Loses the game.} (24. Qe3 $17) 24... Qxb4 $19 {[%emt 0:01:28][%csl Ge5][%cal Rb4b2]} 25. Qa3 {[%emt 0:00:04]} Qxa3 {[%emt 0:01:47]} 26. bxa3 {[%emt 0:00:03]} g6 {[%emt 0:00:11]} 27. fxg6 {[%emt 0:00:52]} hxg6 {[%emt 0:00:02] Weighted Error Value: White=0.58/Black=0.32} 0-1

[Event "Dutch Open 2022"]
[Site "Dieren"]
[Date "2022.08.04"]
[Round "9.2"]
[White "Gilmanov, Mansur"]
[Black "Lahaye, Rick"]
[Result "1/2-1/2"]
[ECO "A11"]
[WhiteElo "2377"]
[BlackElo "2417"]
[Annotator "TA"]
[PlyCount "36"]
[EventDate "2022.07.14"]
[EventType "swiss"]
[EventCountry "NED"]
[SourceTitle "playchess.com"]
[Source "ChessBase"]
[SourceQuality "1"]
[TimeControl "40/5400+30:1800+30"]

{[%evp 9,36,0,30,17,22,20,16,11,19,-2,26,3,8,9,3,-65,-82,-61,61,-39,0,0,0,0,-8,0,0,0,0]} 1. Nf3 {[%emt 0:06:26]} d5 {[%emt 0:00:20]} 2. e3 {[%emt 0:00:45]} Nf6 {[%emt 0:00:27]} 3. c4 {[%emt 0:00:27]} e6 {[%emt 0:00:42]} 4. Nc3 {[%emt 0:00:25]} c6 {[%emt 0:00:43]} 5. b3 {[%emt 0:00:23]} Be7 {[%emt 0:00:35]} 6. Bb2 {[%emt 0:01:28] A11: English Opening: 1...c6.} O-O {[%emt 0:00:15]} 7. Qc2 {[%emt 0:00:30]} Nbd7 {[%emt 0:00:12]} 8. Be2 {[%emt 0:00:15]} a6 {[%emt 0:01:11]} 9. Rg1 {[%emt 0:02:40]} e5 {[%emt 0:17:07]} 10. g4 {[%emt 0:10:55] Hoping for g5.} e4 {[%emt 0:00:13]} 11. Nd4 {[%emt 0:02:37]} Ne5 {[%emt 0:10:57][%cal Rc8g4] [#]} 12. Nf5 $146 {[%emt 0:10:38]} (12. cxd5 $11 cxd5 13. g5) ({Predecessor:} 12. g5 Nfg4 13. f3 exf3 14. Nxf3 Nxf3+ 15. Bxf3 Nxh2 16. Be2 d4 17. exd4 Qd7 18. O-O-O {1-0 (33) Rodriguez del Cerro,R (2184)-Gil Quilez,S (2102) Linares 2019}) 12... Bxf5 $15 {[%emt 0:20:50]} 13. gxf5 {[%emt 0:00:04][%cal Oc3e4]} Bd6 {[%emt 0:00:06]} ({Black should play} 13... Qd6 $15) 14. O-O-O {[%emt 0:15:34]} (14. cxd5 $14 cxd5 15. Nxd5) 14... b5 {[%emt 0:02:51][%cal Rb5c4]} 15. c5 $1 {[%emt 0:09:01] The position is equal.} Bc7 {[%emt 0:03:52]} 16. d3 {[%emt 0:10:35]} exd3 {[%emt 0:12:49]} 17. Bxd3 {[%emt 0:00:05]} Nf3 {[%emt 0:00:31][%csl LRg1,LRh2] Pair of Knights!} 18. Rg2 {[%emt 0:09:56] [#] Strongly threatening Be2.} Nh4 {[%emt 0:10:23] Weighted Error Value: White=0.23 (precise) /Black=0.26 (precise)} (18... Bxh2 $2 19. Be2 Be5 20. Bxf3 $18) 1/2-1/2

[Event "Dutch Open 2022"]
[Site "Dieren"]
[Date "2022.08.04"]
[Round "9.3"]
[White "Elgersma, Onno"]
[Black "Van Roon, Sjoerd"]
[Result "0-1"]
[ECO "E14"]
[WhiteElo "2316"]
[BlackElo "2310"]
[Annotator "TA"]
[PlyCount "104"]
[EventDate "2022.07.14"]
[EventType "swiss"]
[EventCountry "NED"]
[SourceTitle "playchess.com"]
[Source "ChessBase"]
[SourceQuality "1"]
[TimeControl "40/5400+30:1800+30"]

{[%evp 21,104,40,41,30,47,36,85,35,63,19,28,41,51,22,18,8,10,10,6,14,10,0,45,0,0,-26,-22,-35,-36,-47,-4,-4,0,0,0,-26,0,-57,-75,-126,-49,-456,-470,-576,-543,-907,-818,-873,-746,-850,-856,-771,-736,-965,-1022,-1516,-1536,-1526,-1423,-3639,-3099,-2761,-2621,-12836,-12837,-12837,-12838,-12838,-12839,-12839,-12839,-12840,-12839,-12841,-12842,-12842,-12842,-12842,-12840,-12842,-12841,-12842,-12842,-12844,-12844]} 1. d4 {[%emt 0:00:58]} d5 {[%emt 0:00:14]} 2. Nf3 {[%emt 0:00:16]} Nf6 {[%emt 0:00:06]} 3. e3 {[%emt 0:00:46]} e6 {[%emt 0:02:07]} 4. c4 {[%emt 0:03:03]} Be7 {[%emt 0:02:48]} 5. Bd3 {[%emt 0:02:50]} O-O {[%emt 0:00:24]} 6. O-O {[%emt 0:00:15]} dxc4 {[%emt 0:08:27]} 7. Bxc4 {[%emt 0:00:21]} b6 {[%emt 0:00:06]} 8. Qe2 {[%emt 0:08:42]} Bb7 {[%emt 0:02:43]} 9. Rd1 {[%emt 0:02:02]} Nbd7 {[%emt 0:03:27]} 10. Nc3 {[%emt 0:05:05]} Ne4 {[%emt 0:06:47]} 11. Nxe4 {[%emt 0:06:04]} Bxe4 {[%emt 0:00:03]} 12. b3 {[%emt 0:00:10] E14: Queen's Indian: Classical Variation (4 e3).} c5 {[%emt 0:08:16]} 13. Bb2 {[%emt 0:07:17] And now dxc5 would win.} Bf6 {[%emt 0:04:43] [#]} (13... Qc7 $14) 14. Rac1 $146 {[%emt 0:00:46]} (14. Ne5 $16) ({Predecessor:} 14. Bb5 cxd4 15. Nxd4 Qe7 16. f3 Bd5 17. e4 Bb7 18. Bxd7 Qxd7 19. Nb5 Qe7 20. Ba3 {1-0 (20) Campioli,M-Spigel,D ICCF corr 1989}) 14... Qe7 {[%emt 0:02:40]} 15. Bb5 {[%emt 0:04:32]} Rfd8 {[%emt 0:04:18]} 16. Ba3 {[%emt 0:06:34]} Rac8 {[%emt 0:04:50]} 17. Bxd7 {[%emt 0:02:34]} Rxd7 {[%emt 0:01:05]} 18. Nd2 {[%emt 0:07:55]} Bb7 {[%emt 0:09:46]} 19. dxc5 {[%emt 0:01:11]} bxc5 {[%emt 0:00:03]} 20. Nc4 {[%emt 0:00:36]} Ba6 {[%emt 0:01:03]} 21. h3 {[%emt 0:01:47]} Qd8 {[%emt 0:07:02]} 22. Qf3 {[%emt 0:03:15]} Rd5 {[%emt 0:03:38]} 23. e4 {[%emt 0:05:43]} Rxd1+ {[%emt 0:01:28]} 24. Rxd1 {[%emt 0:00:27]} Bd4 {[%emt 0:00:22]} 25. Ne3 {[%emt 0:07:11]} Bb7 {[%emt 0:04:37][%cal Of7f5,Ba6b7,Bb7e4,Be4d5][%mdl 32] This bishop pair is nice.} (25... Qa5 {feels hotter.} 26. Nc2 Bf6 27. e5 Bxe5 28. Rd7 f6) 26. Bb2 {[%emt 0:01:26]} f5 {[%emt 0:04:17]} 27. Bxd4 {[%emt 0:04:53]} cxd4 {[%emt 0:01:03]} 28. Nc4 {[%emt 0:00:04]} Bxe4 {[%emt 0:00:13]} 29. Qe2 {[%emt 0:01:37]} (29. Qf4 $11) 29... Qf6 $15 {[%emt 0:02:10]} 30. Nd6 {[%emt 0:04:39]} (30. f3 $142 Bd5 31. f4) 30... Rc2 $40 {[%emt 0:02:39][%mdl 128] Black mounts an attack.} (30... d3 $17 31. Qe3 Qg6 $1 32. Nxe4 fxe4 33. Qxa7 Qh5) 31. Qb5 {[%emt 0:00:27][%mdl 8192] [#] White does not recover from this.} ({Only move:} 31. Nxe4 $15 Rxe2 32. Nxf6+ gxf6 33. Rxd4) 31... h6 $1 $19 {[%emt 0:02:12][%cal Oe4g2] Black is clearly winning.} 32. Qd7 {[%emt 0:08:26]} Bd5 {[%emt 0:01:37]} 33. Nc8 {[%emt 0:02:48] Threatens to win with Qe8+.} Kh7 {[%emt 0:04:07] White must now prevent ...Qg5.} 34. Ne7 {[%emt 0:00:34]} Qh4 {[%emt 0:02:29]} 35. Rf1 {[%emt 0:00:27]} Qe4 {[%emt 0:00:13][%csl Gd5][%cal Re4g2]} 36. Nxd5 {[%emt 0:00:33]} exd5 {[%emt 0:01:08][%mdl 4096] Endgame KQR-KQR} ({Inferior is} 36... Qxd5 37. Qxd5 exd5 38. Rd1 $17) 37. Qa4 {[%emt 0:02:12]} d3 {[%emt 0:00:33][%cal Bd4d3,Bd3d2][%mdl 32]} 38. Qxe4 {[%emt 0:00:30]} fxe4 {[%emt 0:00:09] KR-KR} 39. Rd1 {[%emt 0:00:19]} Rxa2 {[%emt 0:00:19]} 40. Rb1 {[%emt 0:00:41]} Rc2 {[%emt 0:01:30]} 41. Rd1 {[%emt 0:30:12]} d2 {[%emt 0:30:56] ( -> ...Rc1)} 42. Kf1 {[%emt 0:00:03]} Rc1 {[%emt 0:00:04]} 43. Ke2 {[%emt 0:00:06]} Rxd1 {[%emt 0:00:04]} 44. Kxd1 {[%emt 0:00:04] KP-KP} Kg6 {[%emt 0:00:33]} 45. Kxd2 {[%emt 0:00:03]} d4 {[%emt 0:00:51]} 46. Kc2 {[%emt 0:00:00]} Kf5 {[%emt 0:00:00]} 47. g3 {[%emt 0:00:00]} h5 {[%emt 0:00:00][%cal Bh6h5,Bh5h4][%mdl 32]} 48. Kd2 {[%emt 0:00:00]} h4 {[%emt 0:00:00]} 49. Ke2 {[%emt 0:00:00]} Ke5 {[%emt 0:00:00]} 50. Kd2 {[%emt 0:00:00]} Kd5 {[%emt 0:00:00]} 51. gxh4 {[%emt 0:00:00]} Kc5 {[%emt 0:00:00]} 52. f4 {[%emt 0:00:00]} exf3 {[%emt 0:00:00] Weighted Error Value: White=0.74/Black=0.07 (flawless)} 0-1

[Event "Dutch Open 2022"]
[Site "Dieren"]
[Date "2022.08.04"]
[Round "9.4"]
[White "Domalchuk-Jonasson, Aleksandr"]
[Black "Ypma, Peter"]
[Result "1/2-1/2"]
[ECO "B07"]
[WhiteElo "2244"]
[BlackElo "2346"]
[Annotator "TA"]
[PlyCount "78"]
[EventDate "2022.07.14"]
[EventType "swiss"]
[EventCountry "NED"]
[SourceTitle "playchess.com"]
[Source "ChessBase"]
[SourceQuality "1"]
[TimeControl "40/5400+30:1800+30"]

{[%evp 13,78,25,44,13,9,12,7,10,17,17,10,9,31,3,6,0,21,26,18,0,0,0,0,-15,0,0,0,0,0,0,0,0,0,0,0,0,0,0,0,0,0,0,0,0,0,0,0,-3,-3,-3,0,-3,0,-3,-3,-3,-3,-4,-1,-4,-4,-4,0,-7,0,0,0]} 1. d4 {[%emt 0:00:03]} g6 {[%emt 0:00:06]} 2. e4 {[%emt 0:03:15]} Bg7 {[%emt 0:00:11]} 3. Nf3 {[%emt 0:00:52]} d6 {[%emt 0:00:30]} 4. c3 {[%emt 0:01:57]} Nf6 {[%emt 0:03:17]} 5. Bd3 {[%emt 0:00:23]} O-O {[%emt 0:00:23]} 6. h3 {[%emt 0:04:45]} e5 {[%emt 0:02:09]} 7. O-O {[%emt 1:22:45]} Nc6 {[%emt 0:02:09]} 8. a4 {[%emt 0:00:00] [#] B07: Pirc Defence: Miscellaneous Systems.} d5 $146 {[%emt 0:02:05]} ({Predecessor:} 8... Nh5 9. Be3 h6 10. b4 Qf6 11. Be2 Nf4 12. Nbd2 g5 13. b5 Ne7 14. Nh2 Nxe2+ 15. Qxe2 Ng6 {0-1 (37) Venegas Ocampo,P (2149)-Figueredo Losada,L (2369) Mexico City 2021}) 9. exd5 {[%emt 0:00:00]} Nxd5 {[%emt 0:01:25][%cal Re5d4]} 10. dxe5 {[%emt 0:00:00]} Nxe5 {[%emt 0:00:50]} 11. Nxe5 {[%emt 0:00:00]} Bxe5 {[%emt 0:00:09]} 12. Re1 {[%emt 0:00:00]} Re8 {[%emt 0:11:12]} 13. Na3 {[%emt 0:00:00] Threatening Bf1.} c6 {[%emt 0:11:56]} 14. Nc4 {[%emt 0:00:00]} Bg7 {[%emt 0:00:30]} 15. Rxe8+ {[%emt 0:00:00]} Qxe8 {[%emt 0:00:17]} 16. Bf1 {[%emt 0:00:00] The position is equal.} Qe7 {[%emt 0:03:56]} 17. Ne3 {[%emt 0:00:00]} Be6 {[%emt 0:01:04]} 18. Qf3 {[%emt 0:00:00]} Rd8 {[%emt 0:01:50]} 19. Nxd5 {[%emt 0:00:00]} cxd5 {[%emt 0:07:44]} 20. Be3 {[%emt 0:00:00]} d4 {[%emt 0:01:29]} 21. cxd4 {[%emt 0:00:00]} Bxd4 {[%emt 0:00:11]} 22. Rd1 {[%emt 0:00:00]} Bxe3 {[%emt 0:03:49]} ({Don't take} 22... Bxb2 {[#]} 23. Bc5 $1 Qxc5 24. Rxd8+ Kg7 25. Qxb7 $16) 23. Rxd8+ {[%emt 0:00:00]} Qxd8 {[%emt 0:00:04]} 24. Qxe3 $11 {[%emt 0:00:00][%mdl 4096] Endgame KQB-KQB} b6 {[%emt 0:01:22]} 25. a5 {[%emt 0:00:00]} bxa5 {[%emt 0:00:37]} 26. Qxa7 {[%emt 0:00:00]} h5 {[%emt 0:00:50]} 27. Qe3 {[%emt 0:00:00]} Qd1 {[%emt 0:03:30] [#] Hoping for ...Bc4.} 28. Qd3 {[%emt 0:00:00] Inhibits Bc4.} Qc1 {[%emt 0:01:05]} 29. Qb5 {[%emt 0:00:00]} Qd2 {[%emt 0:00:38]} 30. Qd3 {[%emt 0:03:40]} Qb4 {[%emt 0:00:51]} 31. Qc2 {[%emt 0:01:07]} Kf8 {[%emt 0:01:28]} 32. Bd3 {[%emt 0:01:00]} Qe1+ {[%emt 0:00:12]} 33. Kh2 {[%emt 0:00:24]} Qe5+ {[%emt 0:00:12]} 34. Kg1 {[%emt 0:00:15]} h4 {[%emt 0:01:38]} 35. Be4 {[%emt 0:03:22]} g5 {[%emt 0:01:18]} 36. Bf3 {[%emt 0:00:26]} Kg7 {[%emt 0:02:01]} 37. Qd2 {[%emt 0:00:37]} Kg6 {[%emt 0:00:44]} 38. Bd1 {[%emt 0:01:45]} f5 {[%emt 0:03:57]} 39. b4 {[%emt 0:00:59]} axb4 {[%emt 0:02:24] A rather calm draw.  Weighted Error Value: White=0.03 (flawless) /Black=0.04 (flawless)} 1/2-1/2

[Event "Dutch Open 2022"]
[Site "Dieren"]
[Date "2022.08.04"]
[Round "9.5"]
[White "Stillger, Bernhard"]
[Black "Grutter, Tim"]
[Result "1/2-1/2"]
[ECO "E92"]
[WhiteElo "2245"]
[BlackElo "2246"]
[Annotator "TA"]
[PlyCount "82"]
[EventDate "2022.07.14"]
[EventType "swiss"]
[EventCountry "NED"]
[SourceTitle "playchess.com"]
[Source "ChessBase"]
[SourceQuality "1"]
[TimeControl "40/5400+30:1800+30"]

{[%evp 29,82,-7,0,0,0,0,0,0,12,14,20,24,27,4,9,6,14,0,0,0,0,0,6,0,14,0,0,0,0,0,0,0,0,0,0,0,0,0,0,-12,0,0,0,0,0,0,0,0,0,0,0,0,0,0,0]} 1. d4 {[%emt 0:00:02]} Nf6 {[%emt 0:00:03]} 2. Nf3 {[%emt 0:00:05]} g6 {[%emt 0:00:05]} 3. c4 {[%emt 0:00:05]} Bg7 {[%emt 0:00:04]} 4. Nc3 {[%emt 0:00:04]} O-O {[%emt 0:00:04]} 5. e4 {[%emt 0:00:03]} d6 {[%emt 0:00:03]} 6. Be2 {[%emt 0:00:04]} e5 {[%emt 0:00:03]} 7. dxe5 {[%emt 0:00:06]} dxe5 {[%emt 0:00:04]} 8. Qxd8 {[%emt 0:00:07]} Rxd8 {[%emt 0:00:02]} 9. Bg5 {[%emt 0:00:08]} Re8 {[%emt 0:00:03]} 10. Nd5 {[%emt 0:00:10]} Nxd5 {[%emt 0:00:04]} 11. cxd5 {[%emt 0:00:08]} c6 {[%emt 0:00:02]} 12. Bc4 {[%emt 0:00:05]} cxd5 {[%emt 0:00:06]} 13. Bxd5 {[%emt 0:00:10]} Na6 {[%emt 0:00:01][%cal Bb8a6,Ba6c7,Bc7e6][%mdl 32]} 14. O-O-O {[%emt 0:00:23]} Nc7 {[%emt 0:00:19]} 15. Bb3 {[%emt 0:00:25]} Be6 {[%emt 0:08:03]} (15... a5 {looks sharper.} 16. Bd8 Bg4 17. Bxc7 Rec8) 16. Bxe6 {[%emt 0:05:26] E92: King's Indian: Classical: 6 Be2 e5: 7 dxe5, 7 Be3 and Petrosian System without 7...Nbd7.} Nxe6 {[%emt 0:01:00]} 17. Be3 {[%emt 0:00:06]} f5 {[%emt 0:05:21] [#]} 18. Ng5 $146 {[%emt 0:13:07]} ({Predecessor:} 18. Kb1 b6 19. Rhe1 Rad8 20. Ng5 Nf8 21. Nf3 Ne6 22. Ng5 Nf8 23. Nf3 Ne6 24. Ng5 {½-½ (24) Mellado Trivino,J (2434)-Movsziszian,K (2558) Can Picafort 2008}) 18... Rac8+ {[%emt 0:14:25]} (18... Nd4 {with more complications.} 19. exf5 Rac8+ 20. Kb1 gxf5 21. Rhe1 Nc2) 19. Kb1 {[%emt 0:00:34]} Nxg5 {[%emt 0:09:28]} (19... Nd4 {feels hotter.} 20. exf5 gxf5 21. Rhe1 Nc2) 20. Bxg5 {[%emt 0:00:05]} Rc4 {[%emt 0:00:33]} 21. Rhe1 {[%emt 0:10:54]} Rec8 {[%emt 0:05:12] The position is equal.} 22. f3 {[%emt 0:06:20]} R8c7 {[%emt 0:06:09]} 23. b3 {[%emt 0:06:09]} Rc2 {[%emt 0:02:37]} 24. Rc1 {[%emt 0:01:20]} Rxc1+ {[%emt 0:00:19]} 25. Rxc1 $11 {[%emt 0:00:02][%mdl 4096] Endgame KRB-KRB} Rd7 {[%emt 0:00:17]} 26. Be3 {[%emt 0:00:55]} b6 {[%emt 0:00:53]} 27. Kc2 {[%emt 0:01:41]} Bf8 {[%emt 0:01:52]} 28. Rd1 {[%emt 0:04:00]} Rc7+ {[%emt 0:00:31]} 29. Kb2 {[%emt 0:02:44]} Kf7 {[%emt 0:02:06]} 30. a4 {[%emt 0:05:13]} Bb4 {[%emt 0:02:42]} 31. Rd3 {[%emt 0:11:30]} Ke6 {[%emt 0:02:22]} 32. Bd2 {[%emt 0:00:51]} Bxd2 {[%emt 0:01:54]} 33. Rxd2 {[%emt 0:00:02] KR-KR} h5 {[%emt 0:04:03]} 34. Rd8 {[%emt 0:06:28]} Kf6 {[%emt 0:36:40]} 35. h4 {[%emt 0:04:31]} fxe4 {[%emt 0:00:00]} 36. fxe4 {[%emt 0:00:06]} Ke6 {[%emt 0:00:00]} 37. Re8+ {[%emt 0:01:28]} Kf6 {[%emt 0:00:00]} 38. Rf8+ {[%emt 0:01:16]} Ke7 {[%emt 0:00:00]} 39. Rh8 {[%emt 0:01:29]} Kf6 {[%emt 0:00:00]} 40. Rf8+ {[%emt 0:00:32]} Ke7 {[%emt 0:00:00]} 41. Rh8 {[%emt 0:30:09]} Kf6 {[%emt 0:23:10] Not much happened in this game.  Weighted Error Value: White=0.03 (flawless) /Black=0.03 (flawless)} 1/2-1/2

[Event "Dutch Open 2022"]
[Site "Dieren"]
[Date "2022.08.04"]
[Round "9.6"]
[White "Baselmans, Luuk"]
[Black "Maatman, Nick"]
[Result "1/2-1/2"]
[ECO "C56"]
[WhiteElo "2256"]
[BlackElo "2368"]
[Annotator "TA"]
[PlyCount "109"]
[EventDate "2022.07.14"]
[EventType "swiss"]
[EventCountry "NED"]
[SourceTitle "playchess.com"]
[Source "ChessBase"]
[SourceQuality "1"]
[TimeControl "40/5400+30:1800+30"]

{[%evp 15,109,0,0,-7,-7,-16,0,0,0,-16,-2,-10,7,-20,0,-31,3,0,0,-26,0,-34,-43,-58,-34,-42,-27,-38,-31,-38,53,51,48,41,48,47,63,38,48,43,47,31,52,30,43,29,69,70,81,81,70,41,40,21,75,31,31,24,65,58,50,34,32,-17,-21,-24,0,0,0,0,0,0,0,0,0,12,16,19,31,0,4,0,0,0,0,0,0,0,0,0,0,0,0,0,0,0]} 1. e4 {[%emt 0:00:02]} e5 {[%emt 0:00:02]} 2. Nf3 {[%emt 0:00:24]} Nc6 {[%emt 0:00:02]} 3. d4 {[%emt 0:00:19]} exd4 {[%emt 0:00:02]} 4. Bc4 {[%emt 0:00:06]} Nf6 {[%emt 0:00:11]} 5. e5 {[%emt 0:00:29]} d5 {[%emt 0:00:06]} 6. Bb5 {[%emt 0:00:11]} Nd7 {[%emt 0:00:05]} 7. O-O {[%emt 0:00:21]} Be7 {[%emt 0:00:34]} 8. Bxc6 {[%emt 0:00:07]} bxc6 {[%emt 0:00:00][%cal Bb7c6,Bc6c5][%mdl 32]} 9. Nxd4 {[%emt 0:00:00][%cal Bf3d4,Bd4e2,Be2g3,Bg3h5,Bh5f4][%mdl 32] C56: Two Knights: 4 d4 exd4 5 0-0 Nxe4.} Nb8 {[%emt 0:00:00]} 10. Nc3 {[%emt 0:00:00]} O-O {[%emt 0:00:00]} 11. Qf3 {[%emt 0:00:01]} a5 {[%emt 0:00:00]} 12. Bf4 {[%emt 0:00:25]} Ra6 {[%emt 0:00:30]} 13. Rad1 {[%emt 0:00:25]} c5 {[%emt 0:00:55] [#]} 14. Nde2 $146 {[%emt 0:00:32]} ({Predecessor:} 14. Ndb5 d4 15. Nd5 Rg6 16. h3 Na6 17. Bg3 Bg5 18. Na3 Nb4 19. Nc3 f5 20. exf6 Bxf6 {0-1 (67) Robson,R (2676)-Demchenko,A (2654) Chess.com INT 2022}) 14... c6 {[%emt 0:01:56]} 15. Ng3 {[%emt 0:02:41]} Be6 {[%emt 0:03:42]} 16. Nh5 {[%emt 0:06:02][%cal Of4h6]} Kh8 {[%emt 0:00:41]} 17. Rfe1 {[%emt 0:03:32]} Nd7 {[%emt 0:03:32]} 18. Bg3 {[%emt 0:07:16]} a4 {[%emt 0:11:18]} 19. Ne2 {[%emt 0:09:28]} g6 {[%emt 0:32:00]} 20. Nhf4 {[%emt 0:02:11]} Bf5 {[%emt 0:00:44]} (20... g5 $5 {[%cal Rg5f4]} 21. Nxe6 fxe6 $11) 21. c4 {[%emt 0:05:34]} d4 {[%emt 0:01:46]} ({Don't play} 21... Nxe5 {[#]} 22. Nxg6+ $1 fxg6 23. Bxe5+ Kg8 24. cxd5 $14) 22. Nc1 {[%emt 0:02:38]} Be6 {[%emt 0:05:24]} ({Better is} 22... Bg5 $15) 23. Nxe6 $14 {[%emt 0:01:17]} fxe6 {[%emt 0:00:46]} 24. Qg4 {[%emt 0:00:23]} Rf5 {[%emt 0:00:07]} 25. Nd3 {[%emt 0:00:24]} Rb6 {[%emt 0:04:07]} 26. Re4 {[%emt 0:04:13]} Qg8 {[%emt 0:06:14]} 27. Rf1 {[%emt 0:03:08]} Qf7 {[%emt 0:05:16]} 28. Qd1 {[%emt 0:01:35]} Ra6 {[%emt 0:00:07]} 29. f4 {[%emt 0:01:40]} h5 {[%emt 0:04:43]} 30. Re2 {[%emt 0:03:17]} Nb6 {[%emt 0:00:53]} 31. Rc2 {[%emt 0:00:24] White is more active.} Ra8 {[%emt 0:00:52]} 32. Qf3 {[%emt 0:00:50]} Rc8 {[%emt 0:00:18]} 33. Be1 {[%emt 0:00:42]} g5 $1 {[%emt 0:04:25]} 34. Qe4 {[%emt 0:06:57]} Qg6 {[%emt 0:04:45]} (34... gxf4 $11 {remains equal.} 35. b3 Qh7) 35. Ba5 {[%emt 0:02:12]} Nd7 {[%emt 0:00:19]} 36. Rcf2 {[%emt 0:00:15]} g4 {[%emt 0:00:20]} 37. Rc2 {[%emt 0:01:46]} Kh7 {[%emt 0:01:12]} 38. Be1 {[%emt 0:01:05]} Rff8 {[%emt 0:01:27]} 39. Nf2 {[%emt 0:06:40]} (39. Qe2 $14 {deserves consideration.}) 39... Qxe4 $11 {[%emt 0:03:57]} (39... Rxf4 $2 40. Qxf4 Bg5 41. Qe4 $18) 40. Nxe4 {[%emt 0:00:10]} Kg6 {[%emt 0:00:16]} 41. Ba5 {[%emt 0:33:11]} h4 {[%emt 0:33:21]} 42. Re2 {[%emt 0:01:20]} Rb8 {[%emt 0:00:00]} 43. Bc7 {[%emt 0:00:00]} Rb4 {[%emt 0:00:00]} 44. Bd6 {[%emt 0:00:00]} Bxd6 {[%emt 0:00:00]} 45. Nxd6 {[%emt 0:00:00][%cal Of4f5]} Rf5 {[%emt 0:00:00]} 46. g3 {[%emt 0:00:00]} h3 {[%emt 0:00:00]} 47. Kf2 {[%emt 0:00:00]} Rf8 {[%emt 0:00:00] [#] Hoping for ...d3. The position is equal.} 48. f5+ {[%emt 0:00:00]} Rxf5+ {[%emt 0:00:00]} 49. Nxf5 {[%emt 0:00:00]} Kxf5 {[%emt 0:00:00][%mdl 4096] Endgame KRR-KRN} 50. Ke1+ {[%emt 0:00:00]} Kg5 {[%emt 0:00:00]} 51. Rf7 {[%emt 0:00:00]} Nb6 {[%emt 0:00:00]} 52. Rg7+ {[%emt 0:03:47]} Kf5 {[%emt 0:00:00]} 53. Rf7+ {[%emt 0:00:12]} Kg5 {[%emt 0:00:00]} 54. Rg7+ {[%emt 0:02:11]} Kf5 $1 {[%emt 0:00:00]} 55. Rf7+ {[%emt 0:00:09] Weighted Error Value: White=0.09 (flawless) /Black=0.11 (very precise)} 1/2-1/2